bitfinex-derivatives/quotes_ETHF0:USTF0_20260125
["timestamp","ask_amount","ask_price","bid_price","bid_amount"]
[1769369880155,0.00340313,2821.8,2820.3,3.68532612]
[1769369880343,0.17745,2821.1,2819.5,5.632]
[1769369880853,0.17747,2820.9,2819.0,3.55374844]
[1769369881053,0.17748,2820.7,2819.0,0.00374844]
[1769369881258,0.17748,2820.7,2819.0,1.16035903]
[1769369881455,31.06997052,2821.8,2819.0,1.16035903]
[1769369881654,4.14335159,2821.7,2819.0,1.16035903]
[1769369881956,4.14335159,2821.6,2819.0,1.16035903]
[1769369882157,0.17747,2820.9,2819.0,1.16035903]
[1769369882355,1.15661059,2821.4,2819.1,3.64253821]
[1769369882655,1.15661059,2820.9,2819.1,3.64253821]
[1769369882858,0.1775,2820.4,2819.1,3.64253821]
[1769369883053,0.17751,2820.2,2819.1,3.64253821]
[1769369883448,0.17753,2819.9,2819.1,3.64253821]
[1769369883651,1.15661059,2820.4,2819.0,0.00374844]
[1769369883859,1.15661059,2819.9,2817.9,2.082]
[1769369884061,0.17756,2819.4,2817.9,2.082]
[1769369884253,1.15661059,2819.9,2817.9,2.082]
[1769369884454,4.14165215,2819.8,2817.9,2.082]
[1769369884656,1.15661059,2819.9,2817.9,2.082]
[1769369884954,4.13976375,2819.8,2817.9,2.08628513]
[1769369885253,0.17757,2819.2,2817.9,2.08628513]
[1769369885658,0.17757,2819.2,2818.0,3.65421742]
[1769369886457,0.00407894,2819.9,2818.0,3.65421742]
[1769369886653,0.17755,2819.6,2818.0,3.65421742]
[1769369887465,0.00407894,2819.9,2818.1,3.65421742]
[1769369887663,0.00407894,2819.9,2818.6,3.65421742]
[1769369887965,0.17747,2820.9,2818.6,3.65421742]
[1769369888554,0.17747,2820.9,2819.0,1.15661059]
[1769369888757,10.79719227,2821.8,2819.0,1.15661059]
[1769369888758,31.06656739,2821.7,2819.2,3.65421742]
[1769369889069,0.17743,2821.5,2819.4,3.65421742]
[1769369889364,0.17743,2821.5,2819.6,3.65421742]
[1769369889661,0.17743,2821.5,2819.3,3.72757]
[1769369889662,0.17738,2822.3,2820.1,3.83172742]
[1769369889868,0.29140278,2822.6,2820.6,3.65421742]
[1769369890058,0.29140278,2822.6,2820.8,3.65421742]
[1769369890470,0.17733,2823.1,2820.8,3.65421742]
[1769369890669,4.14558066,2823.0,2820.8,3.65852436]
[1769369890966,0.18139252,2823.1,2820.8,3.65852436]
[1769369891361,4.143522,2823.0,2820.8,3.65852436]
[1769369891561,0.18139252,2823.1,2820.8,3.65852436]
[1769369891962,0.18139252,2823.1,2821.1,3.65421742]
[1769369892862,0.17734,2823.0,2821.1,3.65421742]
[1769369895675,0.00406252,2823.1,2821.6,3.83020496]
[1769369895876,5.16519227,2824.6,2822.1,3.83020496]
[1769369895877,31.06656739,2824.4,2822.1,3.83020496]
[1769369896171,0.17724,2824.5,2822.3,3.83020496]
[1769369896467,4.14371585,2824.4,2822.3,3.83020496]
[1769369896669,0.17724,2824.5,2822.6,3.83020496]
[1769369896868,0.17725,2824.4,2822.6,3.83020496]
[1769369897066,4.14312919,2824.3,2822.6,3.83020496]
[1769369897260,4.14312919,2824.3,2821.6,5.629]
[1769369897261,0.00435268,2824.5,2823.2,3.83020496]
[1769369897473,0.00435268,2824.5,2823.2,3.83337463]
[1769369897671,0.1772,2825.2,2823.2,3.83337463]
[1769369897974,0.17722,2824.9,2823.2,3.83337463]
[1769369898469,1.15661059,2825.3,2823.2,3.83337463]
[1769369898470,4.13558259,2824.8,2823.2,3.83337463]
[1769369898668,0.17724,2824.5,2823.2,3.83337463]
[1769369899361,0.00331231,2824.8,2823.2,3.83337463]
[1769369900772,0.00331231,2824.8,2823.4,3.83020496]
[1769369902265,0.17724,2824.5,2823.4,3.83020496]
[1769369902467,0.17725,2824.4,2823.4,3.83020496]
[1769369903273,0.00331231,2824.8,2823.4,3.83020496]
[1769369903670,0.18053231,2824.8,2823.4,3.83020496]
[1769369904771,0.17724,2824.6,2823.4,3.83020496]
[1769369905073,0.00331231,2824.8,2823.4,3.83020496]
[1769369905271,0.17726,2824.3,2823.2,0.00316967]
[1769369905472,0.00331231,2824.8,2823.2,0.00316967]
[1769369906270,0.17727,2824.1,2823.2,0.00316967]
[1769369906875,0.17723,2824.7,2823.2,0.00316967]
[1769369907274,0.17723,2824.6,2823.3,3.83020496]
[1769369907773,0.00331231,2824.8,2823.3,3.83020496]
[1769369908277,0.17726,2824.3,2823.3,3.83020496]
[1769369909664,0.00331231,2824.8,2823.3,3.83020496]
[1769369909869,0.18053231,2824.8,2823.3,3.83020496]
[1769369910270,0.17724,2824.5,2823.3,3.83020496]
[1769369911871,0.17725,2824.4,2823.3,3.83020496]
[1769369913772,0.17726,2824.2,2823.3,3.83020496]
[1769369914380,0.17715,2826.0,2823.3,4.00751496]
[1769369914580,3.545,2826.2,2823.3,4.00751496]
[1769369914777,0.17716,2825.8,2823.3,4.00751496]
[1769369914981,3.545,2826.2,2823.8,3.59206042]
[1769369915172,3.545,2826.2,2823.7,0.17729]
[1769369915173,0.17715,2825.9,2824.0,3.59206042]
[1769369915374,0.00251342,2825.9,2824.0,3.59206042]
[1769369915576,0.17717,2825.6,2824.0,3.59206042]
[1769369916975,0.17719,2825.4,2824.0,3.59206042]
[1769369917176,0.17719,2825.3,2824.0,3.59206042]
[1769369919277,4.15556408,2825.2,2824.0,3.59206042]
[1769369919470,0.17719,2825.3,2824.0,3.59206042]
[1769369919679,0.00251342,2825.9,2824.0,3.59206042]
[1769369919883,4.15619491,2825.8,2824.0,3.59206042]
[1769369920078,0.00251342,2825.9,2824.0,3.59206042]
[1769369920283,31.06656739,2826.8,2824.8,0.17721]
[1769369920576,31.06656739,2827.1,2824.9,3.59206042]
[1769369920782,0.1771,2826.8,2824.9,3.59206042]
[1769369920983,4.15913029,2826.7,2824.9,3.59206042]
[1769369921179,4.15752229,2826.6,2824.9,3.59206042]
[1769369921384,0.17715,2826.0,2824.9,3.59206042]
[1769369921586,0.17717,2825.6,2824.0,2.078]
[1769369921986,4.15554602,2825.5,2824.0,2.078]
[1769369922281,0.17717,2825.6,2824.0,2.078]
[1769369923588,0.17717,2825.6,2824.1,3.59206042]
[1769369923789,4.15957026,2825.5,2824.1,3.59206042]
[1769369923987,0.17717,2825.6,2824.1,3.59206042]
[1769369924190,0.17721,2825.0,2824.0,2.078]
[1769369924487,4.16171345,2824.9,2823.6,3.59206042]
[1769369924683,0.17721,2825.0,2823.6,3.59206042]
[1769369924886,4.16171984,2824.9,2823.6,3.59206042]
[1769369925088,31.24372739,2825.7,2823.6,3.59206042]
[1769369925386,4.17023211,2825.6,2823.6,3.59206042]
[1769369925586,4.17023211,2825.5,2823.6,3.59206042]
[1769369925784,4.17048072,2825.4,2823.6,3.76935042]
[1769369925984,4.17048072,2825.3,2823.6,3.59206042]
[1769369926293,31.06656739,2825.1,2823.6,3.59206042]
[1769369926495,35.23704811,2825.1,2823.6,3.59206042]
[1769369926792,4.17048072,2825.0,2823.6,3.59206042]
[1769369926992,0.17719,2825.3,2823.6,3.59206042]
[1769369927181,16.99032246,2825.3,2823.6,3.76935042]
[1769369927386,3.83522784,2825.7,2823.6,3.76935042]
[1769369927588,7.96738165,2825.5,2823.6,3.59206042]
[1769369927788,8.30436387,2825.4,2823.7,2.078]
[1769369927991,4.17221006,2825.3,2823.7,2.078]
[1769369928191,3.83522784,2825.5,2823.7,2.078]
[1769369928388,3.9501649,2825.4,2823.7,2.078]
[1769369928588,3.83522784,2825.5,2823.7,2.078]
[1769369929385,0.17717,2825.6,2823.7,2.10977831]
[1769369929596,3.81933868,2826.1,2823.8,0.03177831]
[1769369929798,3.94984136,2826.0,2823.9,0.03177831]
[1769369929997,3.81933868,2826.1,2824.0,0.03177831]
[1769369930190,3.94930447,2826.0,2824.0,0.03177831]
[1769369930389,3.81933868,2826.1,2824.0,0.03177831]
[1769369930591,3.81933868,2826.1,2824.1,0.03440056]
[1769369930793,3.81802756,2825.9,2824.0,0.17727]
[1769369931399,3.81802756,2825.5,2823.8,2.078]
[1769369931798,7.95018137,2826.1,2823.9,0.03440056]
[1769369931994,3.91347702,2826.0,2823.9,0.03440056]
[1769369932198,3.81802756,2826.1,2824.0,0.0241207]
[1769369932499,0.17713,2826.3,2824.2,0.0241207]
[1769369932692,3.91412879,2826.2,2824.2,0.0241207]
[1769369932894,3.91412879,2826.1,2824.2,0.0241207]
[1769369933096,0.17713,2826.3,2824.2,0.0241207]
[1769369933296,3.91399128,2826.2,2824.2,0.0241207]
[1769369933503,3.82677138,2826.6,2824.6,0.0241207]
[1769369933895,3.82316749,2826.4,2824.5,0.17724]
[1769369935197,3.82130691,2826.1,2824.2,2.078]
[1769369937802,3.82130691,2826.1,2824.2,2.09730808]
[1769369939004,4.00157131,2825.9,2824.2,2.078]
[1769369939902,3.82442131,2825.7,2824.2,2.078]
[1769369940104,3.82442131,2825.7,2823.7,0.17729]
[1769369940301,3.82342782,2825.5,2823.7,2.25529]
[1769369940894,0.17718,2825.6,2823.8,0.02360004]
[1769369941099,3.82342782,2826.0,2824.0,0.02360004]
[1769369941300,3.82342782,2825.8,2823.9,0.17727]
[1769369941501,3.82342782,2825.8,2824.0,0.17727]
[1769369941706,3.82342782,2826.3,2824.1,0.20086004]
[1769369941904,3.916671,2826.2,2824.4,0.17724]
[1769369942204,3.82342782,2826.3,2824.4,0.17724]
[1769369942404,3.91926597,2826.2,2824.5,0.20193016]
[1769369942601,3.82342782,2826.3,2824.5,0.20193016]
[1769369942908,3.82342782,2826.3,2824.6,0.17723]
[1769369943308,0.00360389,2826.6,2824.8,0.02223287]
[1769369944007,3.8376871,2826.6,2824.7,0.17723]
[1769369944401,0.00360389,2826.6,2824.9,0.17721]
[1769369944705,3.8376871,2826.6,2825.0,5.62]
[1769369945305,0.00360389,2826.6,2825.0,5.62]
[1769369945600,0.00360389,2826.6,2825.0,5.79721]
[1769369947613,0.00360389,2826.6,2825.1,0.1772]
[1769369948402,0.00360389,2826.6,2825.3,0.17718]
[1769369948709,3.83408321,2827.2,2825.4,0.17718]
[1769369949706,3.83816798,2827.2,2825.4,0.17718]
[1769369950612,3.83073426,2826.9,2825.3,0.00292729]
[1769369951111,3.83073426,2826.4,2825.3,0.00292729]
[1769369953413,3.82568091,2827.1,2825.3,0.00292729]
[1769369953811,3.82568091,2827.6,2825.3,0.01973189]
[1769369954006,3.82568091,2827.6,2825.5,0.0168046]
[1769369954414,3.82568091,2827.6,2825.8,0.17716]
[1769369954709,3.82089709,2828.4,2826.0,0.17714]
[1769369954903,3.82462875,2828.4,2826.0,0.20351224]
[1769369955298,3.82086823,2828.0,2825.5,7.77146578]
[1769369955501,3.82086823,2827.4,2825.6,3.542]
[1769369957406,3.82823868,2827.1,2825.6,3.542]
[1769369959210,4.00531868,2827.1,2825.6,3.542]
[1769369960407,3.81909068,2826.9,2825.6,3.542]
[1769369960621,3.57468714,2826.5,2825.3,0.00292729]
[1769369960908,3.57468714,2826.3,2825.3,0.00292729]
[1769369961103,3.57468714,2826.3,2824.4,30.412]
[1769369961304,3.57468714,2826.1,2824.4,5.618]
[1769369961509,3.75182714,2826.1,2824.4,5.618]
[1769369962113,3.75517401,2826.1,2824.4,5.62165882]
[1769369964015,3.75517401,2826.1,2824.4,9.20608326]
[1769369964410,0.00334687,2826.1,2824.5,3.71030435]
[1769369964908,0.00334687,2826.1,2824.6,0.17723]
[1769369966218,0.00334687,2826.1,2824.6,3.90393746]
[1769369966512,0.00334687,2826.1,2824.6,3.72670746]
[1769369966813,0.00334687,2826.1,2824.6,5.80370746]
[1769369971616,0.00334687,2826.1,2824.6,2.077]
[1769369971819,3.67567687,2826.1,2824.6,2.077]
[1769369972723,0.17715,2825.9,2824.6,2.077]
[1769369972922,3.67233,2825.8,2824.6,2.077]
[1769369977427,0.00334687,2826.1,2824.9,3.623155]
[1769369977930,0.00334687,2826.1,2824.6,2.077]
[1769369978419,0.00334687,2826.1,2824.6,5.700155]
[1769369978623,0.00334687,2826.1,2824.6,5.877385]
[1769369978923,0.00334687,2826.1,2824.7,3.623155]
[1769369980126,0.00334687,2826.1,2824.9,3.623155]
[1769369982526,0.00334687,2826.1,2825.0,7.165155]
[1769369982823,0.00334687,2826.1,2825.0,3.542]
[1769369984529,3.55636948,2827.0,2825.1,3.623155]
[1769369984830,3.55636948,2827.0,2825.3,4.8495553]
[1769369985225,3.73344948,2827.0,2825.3,4.8495553]
[1769369985431,31.22226092,2827.5,2825.3,4.8495553]
[1769369985432,3.55636948,2826.5,2825.3,2.077]
[1769369985626,3.55921901,2826.5,2825.3,2.077]
[1769369987423,0.00284953,2826.5,2825.4,3.623155]
[1769369987826,0.00284953,2826.5,2825.3,6.9265553]
[1769369988126,0.00284953,2826.5,2825.3,5.700155]
[1769369990127,0.00284953,2826.5,2825.4,3.623155]
[1769369991130,0.00284953,2826.5,2825.3,0.17719]
[1769369991331,0.00284953,2826.5,2825.4,2.077]
[1769369992022,3.55921901,2826.5,2825.4,2.077]
[1769369992434,3.55921901,2826.5,2824.7,0.17723]
[1769369992627,3.73348948,2826.4,2824.8,5.618]
[1769369992933,3.73348948,2826.4,2824.9,2.077]
[1769369993733,0.00284953,2826.5,2824.9,2.077]
[1769369994231,0.00284953,2826.5,2825.0,4.8495553]
[1769369995236,0.00284953,2826.5,2825.1,5.618]
[1769369996632,0.00284953,2826.5,2825.1,9.241155]
[1769369998739,3.55921901,2826.5,2824.9,3.541]
[1769369999038,3.55636948,2826.2,2825.0,2.077]
[1769370000340,3.73349948,2826.2,2824.3,0.17725]
[1769370000542,0.00284953,2826.5,2825.0,4.8495553]
[1769370000736,0.00284953,2826.5,2825.2,3.623155]
[1769370000938,0.17706,2827.4,2825.4,0.17718]
[1769370001139,3.55636948,2827.6,2825.6,3.623155]
[1769370002035,3.55636948,2827.4,2825.4,7.74425502]
[1769370002241,3.55636948,2827.2,2825.7,2.077]
[1769370004742,3.87690206,2826.7,2825.1,7.74425502]
[1769370005037,3.69979206,2827.2,2825.3,3.64194746]
[1769370005232,0.00309812,2827.6,2825.5,3.64194746]
[1769370005436,0.00309812,2827.6,2826.0,3.64194746]
[1769370005738,0.00309812,2827.6,2826.1,2.077]
[1769370005941,3.70289018,2827.6,2825.7,7.74425502]
[1769370006138,3.70289018,2827.6,2825.8,5.618]
[1769370006441,3.87994018,2827.6,2825.8,5.618]
[1769370007144,3.87994018,2827.6,2825.9,5.618]
[1769370007942,3.87994018,2827.6,2826.0,3.64194746]
[1769370007943,0.00309812,2827.6,2826.0,3.64194746]
[1769370010233,4.17623381,2828.6,2826.5,3.64194746]
[1769370010234,7.87602587,2828.6,2826.5,3.64194746]
[1769370010549,3.69979206,2828.6,2826.5,3.64194746]
[1769370011040,3.69979206,2828.4,2826.6,5.618]
[1769370011236,3.69979206,2828.4,2826.6,9.25994746]
[1769370011441,3.70322753,2828.4,2826.6,9.26339807]
[1769370011740,3.70322753,2828.4,2826.6,0.00345061]
[1769370011947,3.69979206,2827.8,2826.6,0.00345061]
[1769370012540,3.69979206,2827.5,2826.1,2.077]
[1769370013046,3.87685206,2827.5,2826.1,2.077]
[1769370013433,3.87685206,2827.5,2826.1,2.07948944]
[1769370014142,3.87685206,2827.5,2826.1,0.00248944]
[1769370014638,3.87685206,2827.5,2826.2,2.076]
[1769370015936,3.87685206,2827.5,2826.3,2.076]
[1769370017446,0.17706,2827.5,2826.3,2.076]
[1769370017652,3.73419802,2828.0,2826.3,2.076]
[1769370018047,3.73419802,2828.0,2826.3,3.3024003]
[1769370018248,0.17702,2828.0,2826.3,6.83355777]
[1769370018748,3.73419802,2828.0,2826.4,2.076]
[1769370019344,0.00343547,2828.4,2826.4,2.076]
[1769370019345,0.00343547,2828.4,2826.5,3.53115747]
[1769370019549,0.00343547,2828.4,2826.8,4.75755777]
[1769370020346,0.00343547,2828.4,2826.7,0.1771]
[1769370020347,3.55717802,2827.7,2826.1,7.74674446]
[1769370020549,3.55717802,2827.7,2826.1,2.07848944]
[1769370020749,3.73421802,2827.7,2826.1,2.07848944]
[1769370021347,3.55717802,2828.3,2826.3,1.2264003]
[1769370022452,3.55717802,2828.1,2826.3,1.2264003]
[1769370023257,3.55717802,2827.9,2826.2,3.54]
[1769370023554,3.55717802,2827.7,2826.4,2.076]
[1769370025159,0.00343547,2828.4,2826.7,1.2264003]
[1769370025458,3.56061349,2828.4,2826.7,1.2264003]
[1769370025850,3.56061349,2828.4,2826.5,7.74425502]
[1769370026056,3.56061349,2828.4,2826.8,2.076]
[1769370029657,0.00343547,2828.4,2826.8,5.01335054]
[1769370030657,0.00343547,2828.4,2826.9,0.17708]
[1769370031357,0.00343547,2828.4,2827.2,1.2264003]
[1769370031555,0.00343547,2828.4,2827.3,5.616]
[1769370032357,0.00343547,2828.4,2827.0,0.17708]
[1769370032561,0.00343547,2828.4,2827.1,5.616]
[1769370032963,0.00343547,2828.4,2827.2,5.616]
[1769370033265,0.00343547,2828.4,2827.0,0.17708]
[1769370033565,3.62453637,2828.4,2827.3,2.076]
[1769370034363,3.62453637,2828.4,2826.6,7.74425502]
[1769370034660,3.62453637,2828.4,2826.7,5.615]
[1769370037461,3.62453637,2828.4,2826.7,5.7921]
[1769370040164,3.62453637,2828.4,2826.8,3.824]
[1769370040958,3.62453637,2828.4,2826.8,4.00109]
[1769370041360,0.00343547,2828.4,2826.8,4.00109]
[1769370041558,0.00343547,2828.4,2827.2,0.17707]
[1769370041758,3.7980409,2829.3,2827.4,0.17705]
[1769370041959,3.7980409,2829.3,2827.5,3.824]
[1769370042156,3.6211009,2829.3,2827.6,3.17936819]
[1769370042360,3.6211009,2829.3,2827.7,5.615]
[1769370042766,3.62377937,2829.3,2827.7,5.615]
[1769370044073,0.17696,2829.0,2827.1,7.74425502]
[1769370044275,3.6211009,2828.9,2827.5,3.539]
[1769370044970,3.6211009,2828.9,2827.6,5.614]
[1769370045476,0.00267847,2829.3,2827.6,5.614]
[1769370045874,0.00267847,2829.3,2827.6,8.78168086]
[1769370046770,0.00267847,2829.3,2827.7,5.614]
[1769370047972,0.00267847,2829.3,2827.8,5.614]
[1769370048274,3.62377937,2829.3,2827.9,5.614]
[1769370048471,3.62377937,2829.3,2827.4,0.17706]
[1769370048773,3.62377937,2829.3,2827.8,3.539]
[1769370049170,3.62377937,2829.3,2827.9,2.075]
[1769370051082,0.00267847,2829.3,2827.9,2.075]
[1769370052975,3.7979909,2830.1,2828.0,3.16928292]
[1769370053284,3.7979909,2830.1,2828.1,3.16928292]
[1769370053285,3.6211009,2830.1,2828.1,3.16928292]
[1769370053476,3.6211009,2830.1,2828.3,3.34628292]
[1769370053678,3.6211009,2829.8,2828.1,3.538]
[1769370053886,3.6211009,2829.8,2828.2,2.075]
[1769370054082,3.80152017,2829.8,2828.2,0.00391956]
[1769370054376,3.80152017,2829.8,2828.3,2.075]
[1769370054782,0.00350927,2829.8,2828.3,2.075]
[1769370055869,0.00350927,2829.8,2828.4,2.075]
[1769370056073,0.00350927,2829.8,2828.4,5.613]
[1769370056573,0.00350927,2829.8,2828.5,5.613]
[1769370056883,0.00350927,2829.8,2828.2,0.00391956]
[1769370057083,0.00350927,2829.8,2828.3,5.613]
[1769370057576,3.62461017,2829.8,2828.3,5.613]
[1769370058676,3.62461017,2829.8,2828.4,3.18119372]
[1769370058677,0.00350927,2829.8,2828.4,3.18119372]
[1769370058880,3.6211009,2830.3,2828.4,3.18119372]
[1769370059183,3.6211009,2830.3,2828.3,5.613]
[1769370059184,3.6211009,2830.3,2828.7,0.17697]
[1769370059375,3.7979409,2830.9,2828.7,3.35816372]
[1769370059576,3.6211009,2830.7,2828.3,7.74425502]
[1769370059775,3.6211009,2830.7,2828.2,3.36212328]
[1769370059776,3.6211009,2830.5,2828.4,5.613]
[1769370059979,3.6211009,2830.5,2828.5,3.538]
[1769370060183,3.6211009,2830.3,2828.5,5.613]
[1769370061282,0.00254966,2830.7,2828.5,5.613]
[1769370061585,0.00254966,2830.7,2828.8,3.23045961]
[1769370061786,0.00254966,2830.7,2829.0,3.23045961]
[1769370061992,0.00254966,2830.7,2829.1,3.40740961]
[1769370062284,0.00254966,2830.7,2829.1,0.17695]
[1769370062477,3.62365056,2830.7,2829.2,5.613]
[1769370063079,0.00254966,2830.7,2829.3,3.24098535]
[1769370063975,1.41630947,2831.3,2829.2,5.613]
[1769370063976,1.41630947,2831.3,2829.9,0.1769]
[1769370064179,4.17623381,2832.7,2829.5,1.22401412]
[1769370064180,3.68297236,2832.1,2830.2,3.41663942]
[1769370064382,3.68297236,2832.1,2830.3,5.31475942]
[1769370064579,3.68297236,2832.6,2830.6,3.41661942]
[1769370064785,3.68297236,2832.6,2830.3,2.075]
[1769370064786,3.68297236,2833.4,2831.0,3.23975942]
[1769370064973,3.68677644,2833.4,2831.0,3.41959408]
[1769370065281,3.68297236,2833.0,2831.1,2.075]
[1769370065485,3.68297236,2832.8,2831.1,2.075]
[1769370065686,3.68297236,2833.3,2831.1,5.31475942]
[1769370065878,3.68297236,2833.3,2831.2,3.23975942]
[1769370066078,3.68297236,2833.3,2831.1,0.35216195]
[1769370066388,0.00380408,2833.4,2831.2,5.611]
[1769370066389,3.68297236,2833.0,2831.2,5.611]
[1769370066582,3.68297236,2832.7,2831.0,3.54000466]
[1769370066890,3.85970236,2832.7,2831.0,0.00300466]
[1769370067085,3.85971236,2832.5,2831.1,2.074]
[1769370067284,3.85971236,2832.5,2831.0,0.00300466]
[1769370067687,3.68297236,2832.0,2830.4,3.536]
[1769370067889,3.68297236,2832.0,2830.5,2.074]
[1769370068086,3.85974236,2832.0,2829.4,0.17693]
[1769370068386,3.85974236,2832.0,2830.1,3.536]
[1769370068789,3.85974236,2832.0,2830.1,3.53965003]
[1769370069183,3.68297236,2832.6,2830.2,3.17819187]
[1769370069381,3.68297236,2832.6,2830.5,3.35505187]
[1769370069580,3.68297236,2832.6,2830.6,2.074]
[1769370069786,3.68297236,2832.6,2830.6,5.25219187]
[1769370070185,3.68297236,2833.8,2831.7,3.25125811]
[1769370070380,3.68297236,2833.8,2831.8,2.074]
[1769370071095,3.68687972,2833.8,2831.9,5.61]
[1769370071787,3.68687972,2833.8,2831.9,8.86125811]
[1769370072192,3.68687972,2833.8,2832.0,5.609]
[1769370072787,3.68687972,2833.8,2831.3,28.00355526]
[1769370072788,3.68687972,2833.8,2832.1,5.609]
[1769370072989,3.68687972,2833.8,2832.2,5.608]
[1769370073190,3.68687972,2833.8,2832.2,0.0031675]
[1769370073386,3.68687972,2833.8,2832.3,2.073]
[1769370073587,3.68687972,2833.8,2832.2,0.0031675]
[1769370073787,3.68687972,2833.8,2832.3,2.073]
[1769370077698,3.79786755,2833.5,2832.2,0.0031675]
[1769370078299,3.79786755,2833.3,2832.2,0.0031675]
[1769370078597,0.17672,2832.8,2831.4,3.534]
[1769370078800,3.97458755,2832.8,2831.4,3.534]
[1769370079297,3.79786755,2832.8,2831.4,3.534]
[1769370079497,3.79786755,2832.8,2831.5,5.607]
[1769370079696,3.79786755,2832.8,2831.4,0.00422816]
[1769370079900,3.79786755,2832.8,2831.5,5.607]
[1769370080297,3.79786755,2832.8,2831.4,2.07722816]
[1769370081198,3.97454755,2833.5,2831.4,2.07722816]
[1769370081600,3.97454755,2833.5,2831.4,5.35206667]
[1769370082809,3.97454755,2833.5,2831.4,2.07722816]
[1769370082998,3.97454755,2833.5,2831.4,0.00422816]
[1769370083200,3.79786755,2833.3,2831.5,5.607]
[1769370084004,3.79786755,2833.1,2831.4,0.00422816]
[1769370084203,3.79786755,2832.9,2831.4,3.53822816]
[1769370084409,3.79786755,2832.9,2831.4,0.00422816]
[1769370084605,3.79786755,2832.3,2830.6,2.072]
[1769370085104,3.79786755,2832.0,2829.4,3.33688017]
[1769370085409,3.79786755,2831.8,2829.5,9.11981017]
[1769370085598,3.80220453,2831.8,2829.5,9.12363166]
[1769370085800,3.80220453,2831.8,2829.6,3.534]
[1769370086001,3.79786755,2831.6,2829.5,0.00382149]
[1769370086200,3.79786755,2831.4,2829.6,5.606]
[1769370086408,3.79786755,2831.4,2829.7,2.072]
[1769370086609,3.79786755,2831.4,2829.7,5.606]
[1769370088305,3.79786755,2831.4,2829.6,2.073]
[1769370088806,3.79786755,2831.4,2829.5,0.00382149]
[1769370089003,3.79786755,2831.0,2829.5,0.00382149]
[1769370090617,3.97469755,2831.0,2829.5,0.00382149]
[1769370091911,3.79786755,2831.0,2829.5,0.00382149]
[1769370092099,3.79786755,2831.5,2829.5,0.18074149]
[1769370093806,3.97466755,2831.5,2829.5,0.00382149]
[1769370094200,3.82473455,2831.3,2829.5,0.00382149]
[1769370094412,3.82473455,2831.3,2829.6,2.073]
[1769370094608,0.00433698,2831.8,2829.5,3.53882149]
[1769370094609,4.00156455,2831.1,2829.5,0.00382149]
[1769370094804,4.00156455,2831.1,2829.5,2.07682149]
[1769370095302,31.2265979,2831.8,2829.5,2.07682149]
[1769370095303,3.82473455,2830.9,2829.5,2.07682149]
[1769370096407,3.82473455,2830.9,2829.5,0.00382149]
[1769370099314,3.82473455,2831.4,2829.8,1.22210544]
[1769370100011,3.82473455,2831.4,2829.5,0.00382149]
[1769370100213,1.22210544,2831.6,2829.5,0.00382149]
[1769370100214,3.82473455,2831.2,2829.5,0.00382149]
[1769370100510,3.82473455,2831.0,2829.5,0.00382149]
[1769370101116,4.00156455,2831.0,2829.5,0.00382149]
[1769370102702,3.82473455,2831.0,2829.5,0.00382149]
[1769370102903,3.82473455,2830.1,2829.1,3.535]
[1769370104013,3.82473455,2830.1,2829.1,3.53879062]
[1769370106813,3.82473455,2830.6,2829.1,3.53879062]
[1769370110019,3.82473455,2831.1,2829.9,1.22210544]
[1769370110221,3.82473455,2831.1,2830.0,2.074]
[1769370110713,0.18111698,2831.8,2830.0,2.074]
[1769370110714,3.82473455,2831.7,2830.0,2.074]
[1769370112708,0.00433698,2831.8,2829.4,8.96636046]
[1769370112917,3.82473455,2831.5,2829.5,5.61]
[1769370113119,3.82473455,2831.2,2829.6,2.074]
[1769370117322,3.82473455,2831.7,2829.6,2.074]
[1769370117524,3.82473455,2831.5,2829.9,1.22210544]
[1769370119127,3.82473455,2831.5,2830.0,3.824]
[1769370119321,3.82473455,2831.5,2830.1,2.074]
[1769370121723,0.00433698,2831.8,2830.4,1.22210544]
[1769370122320,0.00433698,2831.8,2830.4,1.39897544]
[1769370122520,3.82473455,2832.5,2830.4,4.54322007]
[1769370122720,3.82473455,2832.5,2830.9,1.22210544]
[1769370123428,3.82924708,2832.5,2830.9,1.22210544]
[1769370125226,3.82924708,2832.5,2830.5,7.74425502]
[1769370125726,3.82924708,2832.5,2830.6,5.608]
[1769370126030,3.57564381,2832.3,2830.7,2.073]
[1769370126628,0.17674,2832.4,2829.9,7.74425502]
[1769370126629,3.57564381,2832.1,2829.9,7.74425502]
[1769370126830,3.57564381,2832.1,2830.0,5.608]
[1769370127429,3.57564381,2831.9,2830.0,5.608]
[1769370127632,3.57564381,2831.5,2830.0,5.608]
[1769370128634,3.57564381,2831.5,2830.1,2.073]
[1769370128936,3.57564381,2831.3,2829.4,1.22210544]
[1769370129129,3.57564381,2831.3,2829.5,5.608]
[1769370130036,3.75245381,2831.3,2829.1,0.00379062]
[1769370130226,3.57564381,2830.8,2829.4,3.535]
[1769370130430,3.57564381,2830.8,2829.4,4.75710544]
[1769370130834,3.57564381,2830.8,2829.5,5.608]
[1769370131229,3.57564381,2830.8,2829.1,0.00379062]
[1769370131430,3.57564381,2830.8,2829.2,3.535]
[1769370131737,3.57564381,2830.8,2829.3,2.073]
[1769370132130,3.75249381,2830.8,2829.1,0.00379062]
[1769370132329,3.75249381,2830.8,2829.2,2.073]
[1769370134031,0.17685,2830.7,2829.2,2.073]
[1769370134227,3.75253381,2830.2,2829.1,0.00379062]
[1769370134439,3.57564381,2830.0,2828.6,3.535]
[1769370134730,3.75253381,2830.0,2828.6,5.608]
[1769370135036,3.57564381,2829.8,2828.4,2.073]
[1769370135437,3.57564381,2829.8,2828.4,2.07595844]
[1769370135733,3.57564381,2829.8,2828.4,0.00295844]
[1769370136837,3.66456395,2829.6,2828.4,0.00295844]
[1769370139034,3.84148395,2829.6,2827.4,1.22210544]
[1769370139241,3.66456395,2829.4,2827.5,5.61]
[1769370139632,3.66456395,2829.4,2827.9,1.22210544]
[1769370140233,3.66456395,2829.4,2827.9,1.22667385]
[1769370140639,3.66456395,2829.4,2827.9,0.00456841]
[1769370145539,3.84149395,2829.4,2827.9,0.00456841]
[1769370148948,3.66456395,2829.2,2827.9,0.00456841]
[1769370151551,3.66456395,2828.9,2827.9,0.00456841]
[1769370153561,3.84152395,2828.9,2827.3,2.075]
[1769370153959,3.62453428,2828.7,2827.2,0.93438984]
[1769370154163,3.62453428,2828.4,2827.0,2.075]
[1769370154463,3.62453428,2828.4,2827.0,2.07799483]
[1769370154760,3.62453428,2828.4,2827.0,0.00299483]
[1769370158755,3.80153428,2828.4,2827.0,0.00299483]